[Event "Titled Tuesday Blitz May 10 Early 2022"]
[White "Harshavardhan G B"]
[Black "Aslanov, Umid"]
[WhiteFideId "25059009"]
[BlackFideId "13412620"]
[WhiteElo "1831"]
[BlackElo "1796"]
[Result "1-0"]
[Round "10"]
[TimeControl "180+1"]
[Date "2022.05.11"]
[WhiteClock "0:01:30"]
[BlackClock "0:01:16"]

1. e4 {[%clk 0:03:00]}  c6 {[%clk 0:02:56]} 2. Nc3 {[%clk 0:02:55]}  d5 {[%clk 0:02:56]} 3. Nf3 {[%clk 0:02:55]}  dxe4 {[%clk 0:02:55]} 4. Nxe4 {[%clk 0:02:55]}  Nf6 {[%clk 0:02:56]} 5. Qe2 {[%clk 0:02:54]}  Bg4 {[%clk 0:02:54]} 6. Nxf6+ {[%clk 0:02:51]}  gxf6 {[%clk 0:02:55]} 7. h3 {[%clk 0:02:48]}  Bxf3 {[%clk 0:02:49]} 8. Qxf3 {[%clk 0:02:49]}  Nd7 {[%clk 0:02:49]} 9. d4 {[%clk 0:02:48]}  e6 {[%clk 0:02:48]} 10. Bd3 {[%clk 0:02:47]}  Bd6 {[%clk 0:02:46]} 11. Bh6 {[%clk 0:02:43]}  f5 {[%clk 0:02:39]} 12. g4 {[%clk 0:02:37]}  fxg4 {[%clk 0:02:37]} 13. hxg4 {[%clk 0:02:35]}  Qb6 {[%clk 0:02:35]} 14. O-O-O {[%clk 0:02:33]}  O-O-O {[%clk 0:02:28]} 15. Qxf7 {[%clk 0:02:29]}  Qxd4 {[%clk 0:02:18]} 16. Qxe6 {[%clk 0:02:24]}  Bf4+ {[%clk 0:02:17]} 17. Bxf4 {[%clk 0:02:22]}  Qxf4+ {[%clk 0:02:18]} 18. Kb1 {[%clk 0:02:22]}  Kb8 {[%clk 0:02:17]} 19. Qf5 {[%clk 0:02:12]}  Qc7 {[%clk 0:02:07]} 20. Rxh7 {[%clk 0:02:08]}  Rhf8 {[%clk 0:02:00]} 21. Rf7 {[%clk 0:02:05]}  Rxf7 {[%clk 0:01:58]} 22. Qxf7 {[%clk 0:02:06]}  Rf8 {[%clk 0:01:59]} 23. Qe7 {[%clk 0:01:59]}  Rxf2 {[%clk 0:01:45]} 24. Qe8+ {[%clk 0:01:54]}  Qc8 {[%clk 0:01:44]} 25. Qxc8+ {[%clk 0:01:55]}  Kxc8 {[%clk 0:01:45]} 26. Bf5 {[%clk 0:01:55]}  Kc7 {[%clk 0:01:43]} 27. Rxd7+ {[%clk 0:01:47]}  Kb6 {[%clk 0:01:43]} 28. Rd1 {[%clk 0:01:48]}  a5 {[%clk 0:01:42]} 29. a4 {[%clk 0:01:48]}  Kc5 {[%clk 0:01:42]} 30. c3 {[%clk 0:01:43]}  Kc4 {[%clk 0:01:40]} 31. Rg1 {[%clk 0:01:38]}  Kb3 {[%clk 0:01:36]} 32. Be6+ {[%clk 0:01:38]}  Kxa4 {[%clk 0:01:34]} 33. g5 {[%clk 0:01:38]}  Re2 {[%clk 0:01:18]} 34. Rg4+ {[%clk 0:01:31]}  Kb5 {[%clk 0:01:17]} 35. Bc4+ {[%clk 0:01:30]}  Kc5 {[%clk 0:01:16]} 36. Bxe2 {[%clk 0:01:31]}  b5 {[%clk 0:01:16]} 37. g6 {[%clk 0:01:32]}  a4 {[%clk 0:01:15]} 38. g7 {[%clk 0:01:32]}  Kb6 {[%clk 0:01:15]} 39. g8=Q {[%clk 0:01:32]}  Ka5 {[%clk 0:01:16]} 40. Qb8 {[%clk 0:01:30]}  a3 {[%clk 0:01:16]} 1-0


[Site "https://www.chess.com"]

[Event "Titled Tuesday Blitz May 10 Early 2022"]
[White "Heinemann, Josefine"]
[Black "Priyanka, K"]
[WhiteFideId "12900460"]
[BlackFideId "5082986"]
[WhiteElo "2300"]
[BlackElo "1905"]
[Result "1/2-1/2"]
[Round "10"]
[TimeControl "180+1"]
[Date "2022.05.11"]
[WhiteClock "0:01:20"]
[BlackClock "0:00:40"]

1. e4 {[%clk 0:03:00]}  c5 {[%clk 0:02:59]} 2. Nf3 {[%clk 0:03:00]}  d6 {[%clk 0:02:59]} 3. Nc3 {[%clk 0:02:57]}  Nf6 {[%clk 0:02:59]} 4. e5 {[%clk 0:02:57]}  dxe5 {[%clk 0:02:55]} 5. Nxe5 {[%clk 0:02:58]}  Nbd7 {[%clk 0:02:48]} 6. Bb5 {[%clk 0:02:56]}  a6 {[%clk 0:02:47]} 7. Bxd7+ {[%clk 0:02:56]}  Bxd7 {[%clk 0:02:47]} 8. d4 {[%clk 0:02:55]}  e6 {[%clk 0:02:39]} 9. O-O {[%clk 0:02:54]}  Qc7 {[%clk 0:02:33]} 10. Bf4 {[%clk 0:02:52]}  Bd6 {[%clk 0:02:32]} 11. Re1 {[%clk 0:02:47]}  O-O {[%clk 0:02:29]} 12. d5 {[%clk 0:02:31]}  exd5 {[%clk 0:02:21]} 13. Nxd5 {[%clk 0:02:32]}  Nxd5 {[%clk 0:02:20]} 14. Qxd5 {[%clk 0:02:33]}  Be6 {[%clk 0:02:17]} 15. Qf3 {[%clk 0:02:18]}  Rfe8 {[%clk 0:02:07]} 16. Rad1 {[%clk 0:02:14]}  Rad8 {[%clk 0:01:57]} 17. Bg3 {[%clk 0:01:59]}  Bxe5 {[%clk 0:01:52]} 18. Rxd8 {[%clk 0:01:58]}  Qxd8 {[%clk 0:01:26]} 19. Bxe5 {[%clk 0:01:51]}  f6 {[%clk 0:01:24]} 20. Bc3 {[%clk 0:01:51]}  Bf7 {[%clk 0:01:11]} 21. Rxe8+ {[%clk 0:01:45]}  Bxe8 {[%clk 0:01:09]} 22. h3 {[%clk 0:01:43]}  Bc6 {[%clk 0:01:09]} 23. Qg4 {[%clk 0:01:38]}  Qd7 {[%clk 0:01:04]} 24. Qc4+ {[%clk 0:01:24]}  Qd5 {[%clk 0:01:01]} 25. Qxd5+ {[%clk 0:01:24]}  Bxd5 {[%clk 0:01:01]} 26. b3 {[%clk 0:01:25]}  Kf7 {[%clk 0:01:00]} 27. f3 {[%clk 0:01:25]}  Ke6 {[%clk 0:00:59]} 28. Kf2 {[%clk 0:01:25]}  c4 {[%clk 0:00:58]} 29. h4 {[%clk 0:01:25]}  cxb3 {[%clk 0:00:59]} 30. cxb3 {[%clk 0:01:25]}  h5 {[%clk 0:00:57]} 31. Ke3 {[%clk 0:01:25]}  g5 {[%clk 0:00:51]} 32. g3 {[%clk 0:01:23]}  gxh4 {[%clk 0:00:46]} 33. gxh4 {[%clk 0:01:24]}  Bc6 {[%clk 0:00:46]} 34. f4 {[%clk 0:01:23]}  Kf5 {[%clk 0:00:45]} 35. a4 {[%clk 0:01:20]}  Bd5 {[%clk 0:00:40]} 36. b4 {[%clk 0:01:19]}  Bc6 {[%clk 0:00:40]} 37. a5 {[%clk 0:01:19]}  Bd5 {[%clk 0:00:40]} 38. Bb2 {[%clk 0:01:18]}  Bc6 {[%clk 0:00:40]} 39. Bc3 {[%clk 0:01:19]}  Bd5 {[%clk 0:00:40]} 40. Bb2 {[%clk 0:01:19]}  Bc6 {[%clk 0:00:40]} 41. Bc3 {[%clk 0:01:20]} 1/2-1/2


[Site "https://www.chess.com"]

[Event "Titled Tuesday Blitz May 10 Early 2022"]
[White "Hoffmann, Asa"]
[Black "Risteski, Emil"]
[WhiteFideId "2001470"]
[BlackFideId "15005267"]
[WhiteElo "2117"]
[BlackElo "2070"]
[Result "0-1"]
[Round "10"]
[TimeControl "180+1"]
[Date "2022.05.11"]
[WhiteClock "0:00:13"]
[BlackClock "0:01:38"]

1. d4 {[%clk 0:02:54]}  d6 {[%clk 0:03:00]} 2. e4 {[%clk 0:02:53]}  Nf6 {[%clk 0:02:59]} 3. f3 {[%clk 0:02:53]}  e5 {[%clk 0:02:59]} 4. dxe5 {[%clk 0:02:53]}  dxe5 {[%clk 0:03:00]} 5. Qxd8+ {[%clk 0:02:52]}  Kxd8 {[%clk 0:03:00]} 6. Bc4 {[%clk 0:02:51]}  Be6 {[%clk 0:02:58]} 7. Bxe6 {[%clk 0:02:51]}  fxe6 {[%clk 0:02:59]} 8. Be3 {[%clk 0:02:50]}  Bd6 {[%clk 0:02:58]} 9. Nd2 {[%clk 0:02:50]}  Ke7 {[%clk 0:02:59]} 10. Nc4 {[%clk 0:02:49]}  b5 {[%clk 0:02:54]} 11. Na5 {[%clk 0:02:40]}  h6 {[%clk 0:02:43]} 12. O-O-O {[%clk 0:02:39]}  Rc8 {[%clk 0:02:34]} 13. c4 {[%clk 0:02:29]}  Bb4 {[%clk 0:02:32]} 14. Nb7 {[%clk 0:02:21]}  bxc4 {[%clk 0:02:28]} 15. Bc5+ {[%clk 0:02:09]}  Bxc5 {[%clk 0:02:28]} 16. Nxc5 {[%clk 0:02:09]}  Nbd7 {[%clk 0:02:29]} 17. Na4 {[%clk 0:02:03]}  Nb6 {[%clk 0:02:28]} 18. Nc5 {[%clk 0:02:01]}  Nfd7 {[%clk 0:02:25]} 19. Nxd7 {[%clk 0:01:59]}  Nxd7 {[%clk 0:02:26]} 20. Ne2 {[%clk 0:01:59]}  Nb6 {[%clk 0:02:24]} 21. Nc3 {[%clk 0:01:55]}  c6 {[%clk 0:02:14]} 22. Kc2 {[%clk 0:01:51]}  Rd8 {[%clk 0:02:14]} 23. Rxd8 {[%clk 0:01:49]}  Rxd8 {[%clk 0:02:12]} 24. a4 {[%clk 0:01:47]}  a5 {[%clk 0:02:11]} 25. h4 {[%clk 0:01:42]}  Rd3 {[%clk 0:02:06]} 26. Rd1 {[%clk 0:01:25]}  Rd4 {[%clk 0:02:00]} 27. h5 {[%clk 0:01:19]}  Kd6 {[%clk 0:02:00]} 28. Rg1 {[%clk 0:01:16]}  Kc5 {[%clk 0:01:59]} 29. g4 {[%clk 0:01:15]}  Rd3 {[%clk 0:01:56]} 30. g5 {[%clk 0:01:14]}  Rxf3 {[%clk 0:01:57]} 31. gxh6 {[%clk 0:01:13]}  gxh6 {[%clk 0:01:57]} 32. Rg6 {[%clk 0:01:13]}  Rf2+ {[%clk 0:01:58]} 33. Kc1 {[%clk 0:01:11]}  Kb4 {[%clk 0:01:57]} 34. Rxe6 {[%clk 0:01:08]}  Rf1+ {[%clk 0:01:54]} 35. Kc2 {[%clk 0:01:06]}  Rf2+ {[%clk 0:01:54]} 36. Kc1 {[%clk 0:01:04]}  Nxa4 {[%clk 0:01:54]} 37. Nxa4 {[%clk 0:01:03]}  Kxa4 {[%clk 0:01:55]} 38. Rxh6 {[%clk 0:00:56]}  Kb3 {[%clk 0:01:52]} 39. Rxc6 {[%clk 0:00:56]}  Rc2+ {[%clk 0:01:41]} 40. Kd1 {[%clk 0:00:55]}  Rxb2 {[%clk 0:01:42]} 41. Rb6+ {[%clk 0:00:36]}  Kc3 {[%clk 0:01:42]} 42. Rxb2 {[%clk 0:00:36]}  Kxb2 {[%clk 0:01:43]} 43. h6 {[%clk 0:00:36]}  c3 {[%clk 0:01:44]} 44. h7 {[%clk 0:00:35]}  c2+ {[%clk 0:01:44]} 45. Ke2 {[%clk 0:00:34]}  c1=Q {[%clk 0:01:45]} 46. h8=Q {[%clk 0:00:34]}  Qc2+ {[%clk 0:01:44]} 47. Ke3 {[%clk 0:00:34]}  Qc3+ {[%clk 0:01:44]} 48. Ke2 {[%clk 0:00:34]}  a4 {[%clk 0:01:45]} 49. Qb8+ {[%clk 0:00:30]}  Ka1 {[%clk 0:01:43]} 50. Qa7 {[%clk 0:00:19]}  a3 {[%clk 0:01:42]} 51. Qa4 {[%clk 0:00:14]}  a2 {[%clk 0:01:38]} 52. Qd1+ {[%clk 0:00:13]}  Kb2 {[%clk 0:01:38]} 0-1


[Site "https://www.chess.com"]

[Event "Titled Tuesday Blitz May 10 Early 2022"]
[White "Hua, Lefong"]
[Black "Keller, Peter"]
[WhiteFideId "2602253"]
[BlackFideId "1272105"]
[WhiteElo "2607"]
[BlackElo "2275"]
[Result "1-0"]
[Round "10"]
[TimeControl "180+1"]
[Date "2022.05.11"]
[WhiteClock "0:00:34"]
[BlackClock "0:00:07"]

1. d4 {[%clk 0:03:00]}  Nf6 {[%clk 0:02:59]} 2. c4 {[%clk 0:03:00]}  e6 {[%clk 0:02:52]} 3. Nc3 {[%clk 0:02:46]}  Bb4 {[%clk 0:02:52]} 4. f3 {[%clk 0:02:47]}  c5 {[%clk 0:02:45]} 5. d5 {[%clk 0:02:46]}  d6 {[%clk 0:02:44]} 6. e4 {[%clk 0:02:44]}  b5 {[%clk 0:02:43]} 7. Ne2 {[%clk 0:02:43]}  bxc4 {[%clk 0:02:36]} 8. Nf4 {[%clk 0:02:41]}  Bxc3+ {[%clk 0:02:36]} 9. bxc3 {[%clk 0:02:40]}  e5 {[%clk 0:02:37]} 10. Ne2 {[%clk 0:02:41]}  Nbd7 {[%clk 0:02:36]} 11. Ng3 {[%clk 0:02:40]}  Nb6 {[%clk 0:02:36]} 12. Be2 {[%clk 0:02:38]}  Bd7 {[%clk 0:02:10]} 13. O-O {[%clk 0:02:36]}  h6 {[%clk 0:01:54]} 14. f4 {[%clk 0:02:30]}  exf4 {[%clk 0:01:55]} 15. Bxf4 {[%clk 0:02:29]}  Qe7 {[%clk 0:01:56]} 16. Qd2 {[%clk 0:02:07]}  O-O {[%clk 0:01:52]} 17. Rae1 {[%clk 0:01:42]}  Nxe4 {[%clk 0:01:28]} 18. Nxe4 {[%clk 0:01:36]}  Qxe4 {[%clk 0:01:29]} 19. Bxd6 {[%clk 0:01:30]}  Rfe8 {[%clk 0:01:25]} 20. Bf3 {[%clk 0:01:24]}  Qd3 {[%clk 0:01:18]} 21. Rxe8+ {[%clk 0:01:23]}  Rxe8 {[%clk 0:01:15]} 22. Qf4 {[%clk 0:01:16]}  Qxc3 {[%clk 0:01:04]} 23. Bh5 {[%clk 0:01:08]}  Qe3+ {[%clk 0:00:57]} 24. Qxe3 {[%clk 0:01:06]}  Rxe3 {[%clk 0:00:58]} 25. Bxf7+ {[%clk 0:01:04]}  Kh7 {[%clk 0:00:56]} 26. Bxc5 {[%clk 0:01:04]}  Rd3 {[%clk 0:00:43]} 27. d6 {[%clk 0:00:51]}  c3 {[%clk 0:00:12]} 28. Bb3 {[%clk 0:00:52]}  Rd2 {[%clk 0:00:11]} 29. Bb4 {[%clk 0:00:48]}  Nd5 {[%clk 0:00:09]} 30. Ba5 {[%clk 0:00:41]}  Ne3 {[%clk 0:00:09]} 31. Rf2 {[%clk 0:00:38]}  Rxf2 {[%clk 0:00:07]} 32. Kxf2 {[%clk 0:00:39]}  c2 {[%clk 0:00:08]} 33. Bd2 {[%clk 0:00:37]}  Nd1+ {[%clk 0:00:06]} 34. Ke1 {[%clk 0:00:35]}  Bf5 {[%clk 0:00:07]} 35. d7 {[%clk 0:00:33]}  Bxd7 {[%clk 0:00:07]} 36. Bxc2+ {[%clk 0:00:34]} 1-0


[Site "https://www.chess.com"]

[Event "Titled Tuesday Blitz May 10 Early 2022"]
[White "Iljin, Timofey"]
[Black "Qashashvili, Alexandre"]
[WhiteFideId "14110180"]
[BlackFideId "13600842"]
[WhiteElo "2404"]
[BlackElo "2316"]
[Result "0-1"]
[Round "10"]
[TimeControl "180+1"]
[Date "2022.05.11"]
[WhiteClock "0:00:54"]
[BlackClock "0:00:21"]

1. d4 {[%clk 0:02:54]}  d5 {[%clk 0:02:59]} 2. c4 {[%clk 0:02:55]}  c6 {[%clk 0:02:59]} 3. Nc3 {[%clk 0:02:55]}  Nf6 {[%clk 0:02:59]} 4. Nf3 {[%clk 0:02:56]}  Bf5 {[%clk 0:02:59]} 5. cxd5 {[%clk 0:02:55]}  Nxd5 {[%clk 0:02:59]} 6. Qb3 {[%clk 0:02:56]}  Nxc3 {[%clk 0:02:59]} 7. Qxb7 {[%clk 0:02:55]}  Nd5 {[%clk 0:02:58]} 8. Qxa8 {[%clk 0:02:53]}  Qb6 {[%clk 0:02:32]} 9. e4 {[%clk 0:02:44]}  Bxe4 {[%clk 0:01:27]} 10. Nd2 {[%clk 0:02:42]}  Nc7 {[%clk 0:01:23]} 11. Qxb8+ {[%clk 0:02:38]}  Qxb8 {[%clk 0:01:21]} 12. Nxe4 {[%clk 0:02:39]}  e6 {[%clk 0:01:14]} 13. Bd3 {[%clk 0:02:36]}  Qb4+ {[%clk 0:01:11]} 14. Nc3 {[%clk 0:02:37]}  Nd5 {[%clk 0:01:06]} 15. Bd2 {[%clk 0:02:28]}  Qxd4 {[%clk 0:01:03]} 16. Be2 {[%clk 0:02:25]}  Bc5 {[%clk 0:00:54]} 17. Rf1 {[%clk 0:02:16]}  O-O {[%clk 0:00:44]} 18. O-O-O {[%clk 0:02:16]}  Rb8 {[%clk 0:00:40]} 19. Bf3 {[%clk 0:01:59]}  Qb4 {[%clk 0:00:33]} 20. Kc2 {[%clk 0:01:43]}  Qxb2+ {[%clk 0:00:29]} 21. Kd3 {[%clk 0:01:43]}  Nxc3 {[%clk 0:00:24]} 22. Bxc3 {[%clk 0:01:43]}  Qb5+ {[%clk 0:00:20]} 23. Kc2 {[%clk 0:01:42]}  Qa4+ {[%clk 0:00:16]} 24. Kd3 {[%clk 0:01:42]}  Qxa2 {[%clk 0:00:13]} 25. Ra1 {[%clk 0:01:41]}  Qb3 {[%clk 0:00:08]} 26. Rfc1 {[%clk 0:01:36]}  Qb5+ {[%clk 0:00:07]} 27. Kc2 {[%clk 0:01:35]}  Qb3+ {[%clk 0:00:07]} 28. Kd3 {[%clk 0:01:35]}  Bxf2 {[%clk 0:00:06]} 29. Ke2 {[%clk 0:01:33]}  Bb6 {[%clk 0:00:04]} 30. Rab1 {[%clk 0:01:30]}  Qc4+ {[%clk 0:00:04]} 31. Ke1 {[%clk 0:01:30]}  Rd8 {[%clk 0:00:04]} 32. Be2 {[%clk 0:01:31]}  Qh4+ {[%clk 0:00:03]} 33. g3 {[%clk 0:01:31]}  Qxh2 {[%clk 0:00:03]} 34. Rxb6 {[%clk 0:00:38]}  axb6 {[%clk 0:00:04]} 35. Bd2 {[%clk 0:00:38]}  Qg1+ {[%clk 0:00:04]} 36. Bf1 {[%clk 0:00:39]}  Qxg3+ {[%clk 0:00:05]} 37. Ke2 {[%clk 0:00:40]}  Qe5+ {[%clk 0:00:05]} 38. Be3 {[%clk 0:00:40]}  c5 {[%clk 0:00:05]} 39. Bg2 {[%clk 0:00:40]}  f5 {[%clk 0:00:05]} 40. Rb1 {[%clk 0:00:39]}  f4 {[%clk 0:00:05]} 41. Rb3 {[%clk 0:00:39]}  fxe3 {[%clk 0:00:05]} 42. Rxe3 {[%clk 0:00:40]}  Qh5+ {[%clk 0:00:05]} 43. Bf3 {[%clk 0:00:39]}  Qh2+ {[%clk 0:00:05]} 44. Kf1 {[%clk 0:00:40]}  Rd2 {[%clk 0:00:03]} 45. Be2 {[%clk 0:00:37]}  Rxe2 {[%clk 0:00:04]} 46. Rxe2 {[%clk 0:00:37]}  Qxe2+ {[%clk 0:00:05]} 47. Kxe2 {[%clk 0:00:37]}  Kf7 {[%clk 0:00:05]} 48. Kd3 {[%clk 0:00:38]}  Kf6 {[%clk 0:00:06]} 49. Ke4 {[%clk 0:00:39]}  h5 {[%clk 0:00:07]} 50. Kf4 {[%clk 0:00:40]}  b5 {[%clk 0:00:07]} 51. Ke4 {[%clk 0:00:41]}  b4 {[%clk 0:00:08]} 52. Kf4 {[%clk 0:00:42]}  b3 {[%clk 0:00:09]} 53. Ke3 {[%clk 0:00:43]}  b2 {[%clk 0:00:10]} 54. Kd2 {[%clk 0:00:43]}  h4 {[%clk 0:00:10]} 55. Ke3 {[%clk 0:00:44]}  h3 {[%clk 0:00:11]} 56. Kd2 {[%clk 0:00:45]}  h2 {[%clk 0:00:12]} 57. Kc2 {[%clk 0:00:45]}  h1=Q {[%clk 0:00:13]} 58. Kxb2 {[%clk 0:00:46]}  Qd1 {[%clk 0:00:14]} 59. Kc3 {[%clk 0:00:47]}  c4 {[%clk 0:00:14]} 60. Kxc4 {[%clk 0:00:47]}  e5 {[%clk 0:00:15]} 61. Kb5 {[%clk 0:00:48]}  e4 {[%clk 0:00:16]} 62. Kb6 {[%clk 0:00:49]}  e3 {[%clk 0:00:17]} 63. Kb7 {[%clk 0:00:50]}  e2 {[%clk 0:00:18]} 64. Kb8 {[%clk 0:00:50]}  e1=Q {[%clk 0:00:19]} 65. Kb7 {[%clk 0:00:51]}  Qed2 {[%clk 0:00:19]} 66. Kb6 {[%clk 0:00:52]}  Q2c2 {[%clk 0:00:20]} 67. Ka5 {[%clk 0:00:53]}  Qdb1 {[%clk 0:00:20]} 68. Ka6 {[%clk 0:00:54]}  Qca2# {[%clk 0:00:21]} 0-1


[Site "https://www.chess.com"]

[Event "Titled Tuesday Blitz May 10 Early 2022"]
[White "Ismayil, Malak"]
[Black "Turutin, Alexander"]
[WhiteFideId "13412604"]
[BlackFideId "4180623"]
[WhiteElo "1879"]
[BlackElo "2402"]
[Result "1-0"]
[Round "10"]
[TimeControl "180+1"]
[Date "2022.05.11"]
[WhiteClock "0:00:11"]
[BlackClock "0:00:04"]

1. e4 {[%clk 0:03:00]}  c6 {[%clk 0:02:59]} 2. d4 {[%clk 0:03:00]}  d5 {[%clk 0:03:00]} 3. exd5 {[%clk 0:03:00]}  cxd5 {[%clk 0:03:01]} 4. Bd3 {[%clk 0:03:00]}  Nc6 {[%clk 0:03:00]} 5. c3 {[%clk 0:02:59]}  Qc7 {[%clk 0:03:01]} 6. h3 {[%clk 0:02:59]}  Nf6 {[%clk 0:02:59]} 7. Nf3 {[%clk 0:02:52]}  g6 {[%clk 0:02:59]} 8. O-O {[%clk 0:02:46]}  Bg7 {[%clk 0:02:57]} 9. Re1 {[%clk 0:02:44]}  O-O {[%clk 0:02:57]} 10. Bg5 {[%clk 0:02:40]}  Bf5 {[%clk 0:02:55]} 11. Bb5 {[%clk 0:02:39]}  Ne4 {[%clk 0:02:41]} 12. Nbd2 {[%clk 0:02:33]}  Nxg5 {[%clk 0:02:34]} 13. Nxg5 {[%clk 0:02:31]}  e5 {[%clk 0:02:10]} 14. Bxc6 {[%clk 0:02:23]}  bxc6 {[%clk 0:02:10]} 15. dxe5 {[%clk 0:02:23]}  Bxe5 {[%clk 0:02:11]} 16. Ngf3 {[%clk 0:02:21]}  Bf6 {[%clk 0:02:09]} 17. Nb3 {[%clk 0:02:18]}  Qb6 {[%clk 0:02:00]} 18. Nfd4 {[%clk 0:02:15]}  Bd7 {[%clk 0:01:57]} 19. Qf3 {[%clk 0:02:14]}  Bg7 {[%clk 0:01:57]} 20. Re7 {[%clk 0:02:12]}  Rad8 {[%clk 0:01:40]} 21. Rae1 {[%clk 0:02:01]}  a5 {[%clk 0:01:25]} 22. Qe2 {[%clk 0:01:03]}  a4 {[%clk 0:01:19]} 23. Nc1 {[%clk 0:01:03]}  c5 {[%clk 0:01:04]} 24. Nf3 {[%clk 0:01:03]}  a3 {[%clk 0:01:04]} 25. bxa3 {[%clk 0:00:54]}  Bxc3 {[%clk 0:01:03]} 26. Rd1 {[%clk 0:00:54]}  Bb5 {[%clk 0:00:57]} 27. Qc2 {[%clk 0:00:50]}  Bf6 {[%clk 0:00:56]} 28. Ree1 {[%clk 0:00:49]}  Qc6 {[%clk 0:00:46]} 29. Nb3 {[%clk 0:00:46]}  Ba4 {[%clk 0:00:37]} 30. Rc1 {[%clk 0:00:36]}  c4 {[%clk 0:00:35]} 31. Qd2 {[%clk 0:00:36]}  Qd6 {[%clk 0:00:34]} 32. Nbd4 {[%clk 0:00:32]}  Qxa3 {[%clk 0:00:34]} 33. Rc3 {[%clk 0:00:27]}  Qc5 {[%clk 0:00:34]} 34. Qf4 {[%clk 0:00:26]}  Bg7 {[%clk 0:00:32]} 35. h4 {[%clk 0:00:25]}  Qa5 {[%clk 0:00:26]} 36. Rce3 {[%clk 0:00:23]}  c3 {[%clk 0:00:24]} 37. Rc1 {[%clk 0:00:22]}  Rc8 {[%clk 0:00:23]} 38. h5 {[%clk 0:00:19]}  Rc4 {[%clk 0:00:22]} 39. h6 {[%clk 0:00:18]}  Bh8 {[%clk 0:00:21]} 40. Ne5 {[%clk 0:00:18]}  Rcc8 {[%clk 0:00:15]} 41. Ng4 {[%clk 0:00:17]}  Qb6 {[%clk 0:00:08]} 42. Ne2 {[%clk 0:00:14]}  c2 {[%clk 0:00:08]} 43. Rf3 {[%clk 0:00:14]}  f5 {[%clk 0:00:06]} 44. Ne3 {[%clk 0:00:13]}  Qb2 {[%clk 0:00:06]} 45. Qd6 {[%clk 0:00:11]}  Rfd8 {[%clk 0:00:05]} 46. Qe6+ {[%clk 0:00:11]}  Kf8 {[%clk 0:00:04]} 47. Nxf5 {[%clk 0:00:11]} 1-0


[Site "https://www.chess.com"]

[Event "Titled Tuesday Blitz May 10 Early 2022"]
[White "Itkis, Boris"]
[Black "Sharbaf, Mohsen"]
[WhiteFideId "1209167"]
[BlackFideId "12501808"]
[WhiteElo "2207"]
[BlackElo "2187"]
[Result "0-1"]
[Round "10"]
[TimeControl "180+1"]
[Date "2022.05.11"]
[WhiteClock "0:02:13"]
[BlackClock "0:02:31"]

1. Nf3 {[%clk 0:03:00]}  d5 {[%clk 0:02:58]} 2. b3 {[%clk 0:03:00]}  f6 {[%clk 0:02:56]} 3. Bb2 {[%clk 0:03:01]}  e5 {[%clk 0:02:56]} 4. e3 {[%clk 0:03:02]}  c5 {[%clk 0:02:54]} 5. d4 {[%clk 0:02:59]}  cxd4 {[%clk 0:02:46]} 6. exd4 {[%clk 0:02:58]}  e4 {[%clk 0:02:46]} 7. Nh4 {[%clk 0:02:57]}  f5 {[%clk 0:02:46]} 8. Qh5+ {[%clk 0:02:45]}  g6 {[%clk 0:02:41]} 9. Nxg6 {[%clk 0:02:45]}  hxg6 {[%clk 0:02:40]} 10. Qxh8 {[%clk 0:02:46]}  Kf7 {[%clk 0:02:41]} 11. Qh7+ {[%clk 0:02:31]}  Bg7 {[%clk 0:02:40]} 12. h4 {[%clk 0:02:27]}  Nf6 {[%clk 0:02:39]} 13. Qxg7+ {[%clk 0:02:18]}  Kxg7 {[%clk 0:02:39]} 14. c4 {[%clk 0:02:17]}  Nc6 {[%clk 0:02:37]} 15. c5 {[%clk 0:02:16]}  Be6 {[%clk 0:02:32]} 16. Nc3 {[%clk 0:02:13]}  Nxd4 {[%clk 0:02:31]} 0-1


[Site "https://www.chess.com"]

[Event "Titled Tuesday Blitz May 10 Early 2022"]
[White "Jeet, Jain"]
[Black "Lamaze, Simon"]
[WhiteFideId "5073022"]
[BlackFideId "36069264"]
[WhiteElo "2028"]
[BlackElo "1999"]
[Result "1-0"]
[Round "10"]
[TimeControl "180+1"]
[Date "2022.05.11"]
[WhiteClock "0:00:44"]
[BlackClock "0:00:14"]

1. Nf3 {[%clk 0:03:00]}  d5 {[%clk 0:02:51]} 2. e3 {[%clk 0:02:59]}  Nf6 {[%clk 0:02:52]} 3. c4 {[%clk 0:02:59]}  e6 {[%clk 0:02:51]} 4. cxd5 {[%clk 0:02:59]}  exd5 {[%clk 0:02:52]} 5. d4 {[%clk 0:02:59]}  Bd6 {[%clk 0:02:52]} 6. Nc3 {[%clk 0:02:59]}  c6 {[%clk 0:02:52]} 7. Bd3 {[%clk 0:02:59]}  O-O {[%clk 0:02:52]} 8. O-O {[%clk 0:02:58]}  Re8 {[%clk 0:02:51]} 9. b3 {[%clk 0:02:58]}  Nbd7 {[%clk 0:02:50]} 10. Bb2 {[%clk 0:02:58]}  Nf8 {[%clk 0:02:49]} 11. Re1 {[%clk 0:02:57]}  Ne4 {[%clk 0:02:47]} 12. Ne5 {[%clk 0:02:51]}  f6 {[%clk 0:02:32]} 13. Nf3 {[%clk 0:02:49]}  Ng6 {[%clk 0:02:29]} 14. Nd2 {[%clk 0:02:39]}  f5 {[%clk 0:02:26]} 15. f4 {[%clk 0:02:34]}  Be6 {[%clk 0:02:04]} 16. Nf3 {[%clk 0:02:34]}  Qe7 {[%clk 0:02:03]} 17. Ne5 {[%clk 0:02:34]}  Nxe5 {[%clk 0:02:02]} 18. fxe5 {[%clk 0:02:28]}  Bb4 {[%clk 0:02:00]} 19. Rc1 {[%clk 0:02:22]}  a6 {[%clk 0:01:55]} 20. Rf1 {[%clk 0:02:09]}  Rf8 {[%clk 0:01:54]} 21. Ne2 {[%clk 0:02:09]}  Bd2 {[%clk 0:01:40]} 22. Rf3 {[%clk 0:02:01]}  Bxc1 {[%clk 0:01:35]} 23. Qxc1 {[%clk 0:02:02]}  c5 {[%clk 0:01:26]} 24. Nf4 {[%clk 0:01:58]}  Rfc8 {[%clk 0:01:24]} 25. Qe1 {[%clk 0:01:55]}  Qd7 {[%clk 0:01:18]} 26. Rh3 {[%clk 0:01:47]}  b5 {[%clk 0:01:12]} 27. Qh4 {[%clk 0:01:43]}  g5 {[%clk 0:01:06]} 28. Rg3 {[%clk 0:01:32]}  Qe7 {[%clk 0:00:29]} 29. Bxe4 {[%clk 0:01:28]}  fxe4 {[%clk 0:00:24]} 30. Rxg5+ {[%clk 0:01:28]}  Kf8 {[%clk 0:00:22]} 31. Qh6+ {[%clk 0:01:22]}  Ke8 {[%clk 0:00:20]} 32. Nxe6 {[%clk 0:01:20]}  cxd4 {[%clk 0:00:20]} 33. Rg8+ {[%clk 0:01:14]}  Kd7 {[%clk 0:00:19]} 34. Rg7 {[%clk 0:01:14]}  d3 {[%clk 0:00:19]} 35. Rxe7+ {[%clk 0:01:11]}  Kxe7 {[%clk 0:00:20]} 36. Qf6+ {[%clk 0:01:05]}  Kd7 {[%clk 0:00:19]} 37. Qf7+ {[%clk 0:01:04]}  Kc6 {[%clk 0:00:20]} 38. Nd4+ {[%clk 0:01:03]}  Kb6 {[%clk 0:00:20]} 39. Qxd5 {[%clk 0:00:58]}  d2 {[%clk 0:00:20]} 40. Ne2 {[%clk 0:00:52]}  Rd8 {[%clk 0:00:20]} 41. Bd4+ {[%clk 0:00:44]}  Ka5 {[%clk 0:00:18]} 42. b4+ {[%clk 0:00:43]}  Kxb4 {[%clk 0:00:15]} 43. Qb3+ {[%clk 0:00:43]}  Ka5 {[%clk 0:00:14]} 44. Qa3# {[%clk 0:00:44]} 1-0


[Site "https://www.chess.com"]